Workbook

Sheet 1,2,3,4,5,6
K1: ЗАТВЕРДЖЕНО
K2: Наказ Міністерства фінансів України
K3: 26.08.2014 N 836
H6: ЗВІТ
A7: про виконання паспорта бюджетної програми місцевого бюджету станом на | K7: 01 | L7: січня | M7: 2018 року
A8: 1. | B8: 0300000 | D8: Виконавчий комітет Житомирської міської ради Житомирської області
B9: (КПКВК МБ) | D9: (найменування головного розпорядника)
A10: 2. | B10: 0310000 | D10: Виконавчий комітет Житомирської міської ради Житомирської області
B11: (КПКВК МБ) | D11: (найменування відповідального виконавця)
A12: 3. | B12: 0318100 | E12: Надання та повернення пільгового довготермінового кредиту на будівництво (реконструкцію) та придбання житла
B13: (КПКВК МБ) | C13: (КФКВК) | E13: (найменування бюджетної програми)
A14: 4. | B14: Видатки та надання кредитів за бюджетною програмою за звітний період
L15: (тис. грн.)
A16: Затверджено паспортом бюджетної програми | F16: Касові видатки (надані кредити) | J16: Відхилення
A17: загальний фонд | C17: спеціальний фонд | E17: разом | F17: загальний фонд | H17: спеціальний фонд | I17: разом | J17: загальний фонд | K17: спеціальний фонд | M17: разом
A18: 1 | C18: 2 | E18: 3 | F18: 4 | H18: 5 | I18: 6 | J18: 7 | K18: 8 | M18: 9
A19: 1079.6 | C19: 116.5 | E19: =SUM(A19:D19) -> 1196.1 | F19: 1079.6 | H19: 82.879 | I19: =SUM(F19:H19) -> 1162.479 | J19: =A19-F19 -> 0 | K19: =H19-C19 -> -33.621 | M19: =SUM(J19:L19) -> -33.621
A20: 64.8 | C20: 6.99 | E20: =SUM(A20:D20) -> 71.79 | F20: 64.8 | H20: 4.972 | I20: =SUM(F20:H20) -> 69.772 | J20: =A20-F20 -> 0 | K20: =H20-C20 -> -2.018 | M20: =SUM(J20:L20) -> -2.018
A21: =SUM(A19:A20) -> 1144.4 | C21: =SUM(C19:C20) -> 123.49 | E21: =SUM(E19:E20) -> 1267.89 | F21: =SUM(F19:F20) -> 1144.4 | H21: =SUM(H19:H20) -> 87.851 | I21: =SUM(I19:I20) -> 1232.251 | J21: =SUM(J19:J20) -> 0 | K21: =SUM(K19:K20) -> -35.639 | M21: =SUM(M19:M20) -> -35.639
A22: 5. | B22: Обсяги фінансування бюджетної програми за звітний період у розрізі підпрограм та завдань
M23: (тис. грн.)
A24: N з/п | B24: КПКВК | C24: КФКВК | D24: Підпрограма/зав-дання бюджетної програми | E24: Затверджено паспортом бюджетної програми на звітний період | H24: Касові видатки (надані кредити) за звітний період | K24: Відхилення
E25: загальний фонд | F25: спеціальний фонд | G25: разом | H25: загальний фонд | I25: спеціальний фонд | J25: разом | K25: загальний фонд | L25: спеціальний фонд | M25: разом
A26: 1 | B26: 318103 | C26: 1060 | D26: Підпрограма 1 . Надання пільгового довгострокового кредиту громадянам на будівництво (реконструкцію) та придбання житла. | E26: 1079.6 | F26: 116.5 | G26: =SUM(E26:F26) -> 1196.1 | H26: 1079.6 | I26: 82.9 | J26: =SUM(H26:I26) -> 1162.5 | K26: =E26-H26 -> 0 | L26: =SUM(I26-F26) -> -33.6 | M26: =K26+L26 -> -33.6
B27: 318103 | C27: 1060 | D27: Завдання 1 . Надання пільгового довгострокового кредиту громадянам на будівництво (реконструкцію) та придбання житла. | E27: 1079.6 | F27: 116.5 | G27: =SUM(E27:F27) -> 1196.1 | H27: 1079.6 | I27: 82.9 | J27: =SUM(H27:I27) -> 1162.5 | K27: =E27-H27 -> 0 | L27: =SUM(I27-F27) -> -33.6 | M27: =K27+L27 -> -33.6
A28: 2 | B28: 0318108 | C28: 1060 | D28: Підпрограма 2. Витрати пов"язані з наданням пільгового довгострокового кредиту громадянам на будівництво (реконструкцію) та придбання житла | E28: 64.8 | F28: 7 | G28: =SUM(E28:F28) -> 71.8 | H28: 64.8 | I28: 5 | J28: =SUM(H28:I28) -> 69.8 | K28: 0 | L28: =SUM(I28-F28) -> -2 | M28: =K28+L28 -> -2
B29: 0318108 | C29: 1060 | D29: Завдання1. Витрати пов"язані з наданням пільгового довгострокового кредиту громадянам на будівництво (реконструкцію) та придбання житла | E29: 64.8 | F29: 7 | G29: =SUM(E29:F29) -> 71.8 | H29: 64.8 | I29: 5 | J29: =SUM(H29:I29) -> 69.8 | K29: =E29-H29 -> 0 | L29: =SUM(I29-F29) -> -2 | M29: =K29+L29 -> -2
D30: Усього | E30: =SUM(E27:E29) -> 1209.2 | F30: =SUM(F27:F29) -> 130.5 | G30: 1339.7 | H30: 1209.2 | I30: 92.9 | J30: =SUM(J26+J28) -> 1232.3 | K30: 0 | L30: =SUM(L26+L28) -> -35.6 | M30: =SUM(K30:L30) -> -35.6
A32: 6. | B32: Видатки на реалізацію регіональних цільових програм, які виконуються в межах бюджетної програми, за звітний період
M33: (тис. грн.)
A34: Назва регіональної цільової програми та підпрограми | E34: Затверджено паспортом бюджетної програми на звітний період | H34: Касові видатки ( надані кредити) за звітний період | K34: Відхилення
E35: загальний фонд | F35: спеціальний фонд | G35: разом | H35: загальний фонд | I35: спеціальний фонд | J35: разом | K35: загальний фонд | L35: спеціальний фонд | M35: разом
A36: 1 | E36: 2 | F36: 3 | G36: 4 | H36: 5 | I36: 6 | J36: 7 | K36: 8 | L36: 9 | M36: 10
A37: Регіональна цільова програма 1
A38: Програма забезпечення молодих сімей та одиноких молодих громадян житлом в м.Житомирі на 2013 -2017 роки | E38: 1079.6 | F38: 116.5 | G38: =SUM(E38:F38) -> 1196.1 | H38: 1079.6 | I38: 82.9 | J38: =SUM(H38:I38) -> 1162.5 | K38: =E38-H38 -> 0 | L38: =I38-F38 -> -33.6 | M38: =K38+L38 -> -33.6
A39: Програма забезпечення молодих сімей та одиноких молодих громадян житлом в м.Житомирі на 2013 -2017 роки | E39: 64.8 | F39: 7 | G39: =SUM(E39:F39) -> 71.8 | H39: 64.8 | I39: 5 | J39: =SUM(H39:I39) -> 69.8 | K39: 0 | L39: =I39-F39 -> -2 | M39: =K39+L39 -> -2
A40: Усього | E40: =SUM(E38:E39) -> 1144.4 | F40: =SUM(F38:F39) -> 123.5 | G40: 1267.9 | H40: 1144.4 | I40: 87.9 | J40: 1232.3 | K40: 0 | L40: -35.6 | M40: -35.6
A42: 7. Результативні показники бюджетної програми, та аналіз їх виконання за звітний період
A45: N з/п | B45: КПКВК | C45: Показники | E45: Одиниця виміру | F45: Джерело інформації | H45: Затверджено паспортом бюджетної програми на звітний період | J45: Виконано за звітний період ( касові видатки/надані кредити) | L45: Відхилення
A47: 1 | B47: 2 | C47: 3 | E47: 4 | F47: 5 | H47: 6 | J47: 7 | L47: 8
C48: Підпрограма 1. Надання пільгового довгострокового кредиту громадянам на будівництво (реконструкцію) та придбання житла
B49: 0318098 | C49: Завдання 1. Надання пільгового довгострокового кредиту громадянам на будівництво (реконструкцію) та придбання житла
C50: затрат
C51: кількість сімей, які перебувають на обліку | E51: од. | F51: реєстр | H51: 117 | J51: 119 | L51: =J51-H51 -> 2
A52: Збільшилась кількість звернень громадян
C53: обсяг витрат, які передбачені для надання довгострокового кредиту громадянам на будівництво (реконструкцію) та придбання житла | E53: тис.грн. | F53: рішення міської ради від 21.12.2016 №42 зі змінами | H53: 1196.1 | J53: 1161.9 | L53: =J53-H53 -> -34.2
A54: Фактичний результативний показник менший у порівнянні з затвердженим у зв'язку з тим , що кошти із спецфонду використані в межах надходжень
C55: продукту
C56: кількість сімей, яким планується надати кредит | E56: од. | F56: розрахункові показники | H56: 3 | J56: 3 | L56: =J56-H56 -> 0
C57: площа, яку планується надати | E57: м.кв. | F57: розрахункові показники | H57: 156.34 | J57: 122.9 | L57: -33.44
A58: Фактичний результативний показник менший у порівнянні з затвердженим у зв'язку із збільшенням вартості 1 кв.м., та використанням коштів спецфонду в межах надходжень
C59: ефективності
C60: середні витрати на надання кредиту на 1 сім'ю | E60: тис.грн. | F60: розрахункові показники | H60: 398.7 | J60: 387.3 | L60: =J60-H60 -> -11.4
C61: якості
C62: Відсоток молодих сімей, яким планується надати житло, до кількості сімей, що перебувають на обліку | E62: % | F62: розрахункові показники | H62: 2.6 | J62: 2.6 | L62: =J62-H62 -> 0
A63: Фактичний результативний показник менший у порівнянні з затвердженим у зв'язку із збільшенням вартості 1 кв.м., та використанням коштів спецфонду в межах надходжень
C64: Підпрограма 2. Витрати, пов'язані з наданням та обслуговуванням пільгових довгострокових кредитів, наданих громадянам на будівництво (реконструкцію) та придбання житла
C65: завдання 1. Витрати, пов'язані з наданням та обслуговуванням пільгових довгострокових кредитів, наданих громадянам на будівництво (реконструкцію) та придбання житла
A66: 1 | C66: затрат
B67: 0318108 | C67: Кількість громадян (сімей), які перебувають на обліку | E67: од. | F67: реєстр | H67: 117 | J67: 119 | L67: =J67-H67 -> 2
C68: Громадяни(сім'ї), які вибули протягом звітного року у звязку з досягененням граничного віку 36 років та(або) отриманням кредитів.
B69: 0318108 | C69: обсяг витрат, пов'язаних з наданням та обслуговуванням пільгових довгострокових кредитів, наданих громадянам на будівництво (реконструкцію) та придбання житла | E69: од. | F69: рішення міської ради від 21.12.2016 №42 зі змінами | H69: 71.8 | J69: 69.8 | L69: =J69-H69 -> -2
A70: 2 | C70: продукту
B71: 0318108 | C71: Кількість укладених договорів, за якими планується здійснювати обслуговування кредитів | E71: од. | F71: розрахункові показники | H71: 3 | J71: 3 | L71: =J71-H71 -> 0
A73: 3 | C73: ефективності
B74: 0318090 | C74: Середні витрати на обслуговування одного кредитного договору | E74: грн | F74: розрахункові показники | H74: 23.9 | J74: =J29/J71 -> 23.26666667 | L74: =J74-H74 -> -0.6333333333
C75: Фактичний результативний показник менший у порівнянні з затвердженим у зв'язку з тим , що кошти із спецфонду використані в межах надходжень
C76: якості
C77: показник
C78: …
C79: Пояснення щодо причин розбіжностей між затвердженими та досягнутими результативними показниками
A80: 4 | C80: якості
B81: 0318090 | C81: Динаміка зростання витрат на обслуговування одного кредитного договору порівняно з попереднім роком | E81: % | F81: розрахунково | H81: 130.2 | J81: =J74/H74*100 -> 97.35006974 | L81: =J81-H81 -> -32.84993026
C82: Фактичний результативний показник менший у порівнянні з затвердженим у зв'язку з тим , що один з кредитів наданий частково та змішаний з коштами обласного бюджету
A84: 8. Джерела фінансування інвестиційних проектів у розрізі підпрограм 3
O86: (тис. грн.)
A87: Код | B87: Найменування джерел надходжень | C87: КПКВК | D87: Касові видатки станом на 01 січня звітного періоду | G87: План видатків звітного періоду | J87: Касові видатки за звітний період | M87: Прогноз видатків до кінця реалізації інвестиційного проекту
D88: загальний фонд | E88: спеціальний фонд | F88: разом | G88: загальний фонд | H88: спеціальний фонд | I88: разом | J88: загальний фонд | K88: спеціальний фонд | L88: разом | M88: загальний фонд | N88: спеціальний фонд | O88: разом
A89: 1 | B89: 2 | C89: 3. | D89: 4 | E89: 5 | F89: 6 | G89: 7 | H89: 8 | I89: 9 | J89: 10 | K89: 11 | L89: 12 | M89: 13 | N89: 14 | O89: 15
B90: Підпрограма 1
B91: Інвестиційний проект 1
B92: Надходження із бюджету
B93: Інші джерела фінансування (за видами) | D93: Х | G93: Х | J93: Х | M93: Х
B94: Пояснення щодо розбіжностей між фактичними надходженнями і тими, що затверджені паспортами бюджетної програми
B95: Інвестиційний проект 2
B96: Усього
A98: 1 Код функціональної класифікації видатків та кредитування бюджету вказується лише у випадку, коли бюджетна програма не поділяється на підпрограми.
A99: 2 Зазначаються усі підпрограми та завдання, затверджені паспортом бюджетної програми.
A100: 3 Пункт 8 заповнюється тільки для затверджених у місцевому бюджеті видатків/ надання кредитів на реалізацію інвестиційних проектів ( програм).
A103: Керівник установи головного розпорядника
A104: бюджетних коштів | K104: Сухомлин С.І.
H105: (підпис) | K105: (прізвище та ініціали)
A107: Головний бухгалтер установи головного розпорядника | K107: Борецька Н.В.
A108: бюджетних коштів | H108: (підпис) | K108: (прізвище та ініціали)
